bitfinex-derivatives/quotes_BTCF0:USTF0_20210703
["timestamp","ask_amount","ask_price","bid_price","bid_amount"]
[1625306459144,1.42575569,34651.0,34648.0,0.6568951]
[1625306459145,1.01588147,34650.0,34648.0,0.6568951]
[1625306459648,1.0162248,34649.0,34648.0,0.6568951]
[1625306459995,1.0162248,34649.0,34648.0,0.5978951]
[1625306460199,1.0162248,34649.0,34648.0,0.5388951]
[1625306460648,2.20181929,34649.0,34648.0,0.5388951]
[1625306461198,1.0162248,34649.0,34648.0,0.5388951]
[1625306461651,2.20182713,34649.0,34648.0,0.6568951]
[1625306462050,2.20182713,34649.0,34648.0,4.4855951]
[1625306462153,0.24057544,34649.0,34648.0,4.4855951]
[1625306462351,0.24057544,34649.0,34648.0,4.49095814]
[1625306462552,0.24057544,34649.0,34648.0,0.66225814]
[1625306465111,0.24057544,34649.0,34648.0,0.60325814]
[1625306465362,1.25782126,34649.0,34648.0,0.66225814]
[1625306465765,1.25782126,34649.0,34648.0,0.6568951]
[1625306466614,1.25782126,34649.0,34648.0,0.6622581]
[1625306467668,2.4457844,34649.0,34648.0,0.6622581]
[1625306468419,2.4457844,34649.0,34648.0,0.8674581]
[1625306469574,1.25782126,34649.0,34648.0,0.8674581]
[1625306470729,1.9372817,34649.0,34648.0,0.8674581]
[1625306472133,1.9372817,34649.0,34648.0,0.8084581]
[1625306472388,3.12711052,34649.0,34648.0,0.8084581]
[1625306472782,1.9372817,34649.0,34648.0,0.8084581]
[1625306472983,1.9372817,34649.0,34648.0,0.7494581]
[1625306473084,1.9372817,34649.0,34648.0,0.6032581]
[1625306473234,3.12695283,34649.0,34648.0,0.6622581]
[1625306473384,3.12695283,34649.0,34648.0,0.6032581]
[1625306473684,3.12695283,34649.0,34648.0,0.5442581]
[1625306474286,4.48698361,34649.0,34648.0,0.5442581]
[1625306475987,4.48698361,34649.0,34648.0,0.6032581]
[1625306476088,4.48698361,34649.0,34648.0,0.6622581]
[1625306476238,4.48698361,34649.0,34648.0,0.6032581]
[1625306476688,4.48698361,34649.0,34648.0,0.6622581]
[1625306476788,4.48698361,34649.0,34648.0,0.6032581]
[1625306476988,4.48698361,34649.0,34648.0,0.6622581]
[1625306477290,4.48698361,34649.0,34648.0,0.6032581]
[1625306477438,4.48698361,34649.0,34648.0,0.6622581]
[1625306477541,3.12695283,34649.0,34648.0,0.6622581]
[1625306479546,1.9372817,34649.0,34648.0,0.6622581]
[1625306480900,3.12723871,34649.0,34648.0,0.6622581]
[1625306481299,3.35123871,34649.0,34648.0,0.6622581]
[1625306482504,3.35123871,34649.0,34648.0,0.6032581]
[1625306482851,3.35123871,34649.0,34648.0,0.6622581]
[1625306483303,3.35123871,34649.0,34648.0,0.6032581]
[1625306483454,3.35123871,34649.0,34648.0,0.6622581]
[1625306483554,3.35123871,34649.0,34648.0,0.6032581]
[1625306484156,3.35123871,34649.0,34648.0,0.6622581]
[1625306484257,3.35123871,34649.0,34648.0,0.6032581]
[1625306484658,3.35123871,34649.0,34648.0,0.6622581]
[1625306484756,3.12723871,34649.0,34648.0,0.6622581]
[1625306485109,3.12723871,34649.0,34648.0,0.6032581]
[1625306485207,3.12723871,34649.0,34648.0,0.6622581]
[1625306485357,3.12723871,34649.0,34648.0,0.6032581]
[1625306485460,1.9372817,34649.0,34648.0,0.6032581]
[1625306485809,1.9372817,34649.0,34648.0,0.6622581]
[1625306485959,1.9372817,34649.0,34648.0,0.6032581]
[1625306486209,1.9372817,34649.0,34648.0,0.6622581]
[1625306486362,3.12753232,34649.0,34648.0,0.6032581]
[1625306486762,3.12753232,34649.0,34648.0,0.6622581]
[1625306486963,3.12753232,34649.0,34648.0,0.6032581]
[1625306487365,3.12753232,34649.0,34648.0,0.6622581]
[1625306488016,1.9372817,34649.0,34648.0,0.6622581]
[1625306489068,3.1277312,34649.0,34648.0,0.6622581]
[1625306489671,3.1277312,34649.0,34648.0,0.6032581]
[1625306489769,3.3743912,34649.0,34648.0,0.30368266]
[1625306489869,3.4333912,34649.0,34648.0,0.30368266]
[1625306489969,3.44574359,34649.0,34648.0,0.30368266]
[1625306490222,7.69384359,34649.0,34648.0,0.30368266]
[1625306490870,3.44574359,34649.0,34648.0,0.06310722]
[1625306490971,4.80678479,34649.0,34648.0,0.06310722]
[1625306491424,6.33853399,34649.0,34648.0,0.06310722]
[1625306491573,6.39753399,34649.0,34648.0,0.06310722]
[1625306491773,6.39753399,34649.0,34641.0,0.40855677]
[1625306491925,6.39753399,34649.0,34641.0,0.24057544]
[1625306492023,0.01236917,34648.0,34642.0,0.00535398]
[1625306492125,0.13036917,34648.0,34642.0,0.00535398]
[1625306492273,0.24057544,34643.0,34642.0,0.00535398]
[1625306492373,4.49583952,34643.0,34642.0,0.00535398]
[1625306492873,4.49583952,34643.0,34640.0,7.064e-05]
[1625306493024,4.55483952,34643.0,34640.0,7.064e-05]
[1625306493124,4.55483952,34643.0,34634.0,1.58490516]
[1625306493224,4.61383952,34643.0,34634.0,1.58490516]
[1625306493325,4.61383952,34643.0,34634.0,1.34432972]
[1625306493424,4.61383952,34643.0,34639.0,0.00534662]
[1625306493624,4.61383952,34643.0,34634.0,1.34432972]
[1625306493625,4.5088,34640.0,34635.0,0.00535457]
[1625306493826,4.6268,34640.0,34635.0,0.00535457]
[1625306494277,1.36233323,34636.0,34635.0,0.00535457]
[1625306494375,2.20205955,34636.0,34635.0,0.00535457]
[1625306494678,2.20205955,34636.0,34630.0,0.00535468]
[1625306494930,3.73469584,34636.0,34630.0,0.00535468]
[1625306495228,3.67569584,34636.0,34630.0,0.00535468]
[1625306495580,1.36241354,34633.0,34630.0,0.00535468]
[1625306495679,1.59699354,34633.0,34630.0,0.00535468]
[1625306496081,1.65599354,34633.0,34630.0,0.00535468]
[1625306496184,1.71499354,34633.0,34630.0,0.00535468]
[1625306496386,0.48115088,34631.0,34630.0,0.00535468]
[1625306496632,0.48115088,34631.0,34626.0,0.0053552]
[1625306496633,1.90266529,34631.0,34626.0,0.0053552]
[1625306496733,1.96166529,34631.0,34626.0,0.0053552]
[1625306496834,1.96166529,34631.0,34630.0,0.00535537]
[1625306497034,1.96166529,34631.0,34623.0,0.00535542]
[1625306497640,1.36230279,34627.0,34621.0,0.00535555]
[1625306497836,1.42130279,34627.0,34621.0,0.00535555]
[1625306498138,1.36233518,34626.0,34619.0,0.00535579]
[1625306498289,1.61635518,34626.0,34619.0,0.00535579]
[1625306498389,0.72172632,34620.0,34619.0,0.00535579]
[1625306499189,0.72172632,34620.0,34618.0,0.00535583]
[1625306499490,0.78072632,34620.0,34618.0,0.00535583]
[1625306499940,0.78072632,34620.0,34617.0,6.034e-05]
[1625306500040,0.78072632,34620.0,34614.0,1.35007518]
[1625306500041,0.83972632,34620.0,34614.0,1.35007518]
[1625306500289,0.78072632,34620.0,34614.0,1.35007518]
[1625306500393,0.24057544,34615.0,34614.0,1.35007518]
[1625306500490,0.45752544,34615.0,34614.0,1.35007518]
[1625306500593,0.45752544,34615.0,34613.0,0.24057544]
[1625306500690,0.45752544,34615.0,34610.0,1.52042759]
[1625306500991,0.51652544,34615.0,34610.0,1.52042759]
[1625306501142,0.51652544,34615.0,34611.0,0.00534979]
[1625306501143,0.57552544,34615.0,34611.0,0.00534979]
[1625306501592,0.57552544,34615.0,34606.0,1.52107218]
[1625306502194,0.57552544,34615.0,34602.0,1.52319722]
[1625306502395,0.17748783,34605.0,34602.0,1.52319722]
[1625306502497,0.45550783,34605.0,34602.0,1.52319722]
[1625306503101,0.45550783,34605.0,34604.0,0.74875146]
[1625306503546,0.45550783,34605.0,34600.0,0.24057544]
[1625306503749,0.45550783,34605.0,34602.0,0.5068313]
[1625306504402,0.48115088,34603.0,34602.0,0.5068313]
[1625306504553,0.54015088,34603.0,34602.0,0.5068313]
[1625306504804,0.54015088,34603.0,34595.0,0.24057544]
[1625306505153,0.48115088,34603.0,34595.0,0.24057544]
[1625306505607,0.54015088,34603.0,34595.0,0.24057544]
[1625306505704,0.48115088,34603.0,34595.0,0.35857544]
[1625306505803,0.54015088,34603.0,34595.0,0.35857544]
[1625306506403,0.48115088,34596.0,34595.0,0.35857544]
[1625306507357,0.48115088,34596.0,34595.0,0.29957544]
[1625306507457,0.48115088,34596.0,34595.0,0.24057544]
[1625306507557,0.54015088,34596.0,34595.0,0.24057544]
[1625306507957,0.54015088,34596.0,34588.0,1.51703965]
[1625306508111,0.54015088,34596.0,34592.0,0.29957544]
[1625306508357,0.54015088,34596.0,34587.0,0.24057544]
[1625306508457,0.24057544,34588.0,34587.0,0.35857544]
[1625306508708,0.24057544,34588.0,34587.0,0.29957544]
[1625306509059,0.24057544,34588.0,34587.0,0.35857544]
[1625306512018,0.24057544,34588.0,34587.0,0.29957544]
[1625306512168,0.50148544,34588.0,34587.0,0.29957544]
[1625306512921,0.50148544,34588.0,34587.0,0.059]
[1625306513325,0.24057544,34588.0,34585.0,0.2929]
[1625306513422,0.24057544,34588.0,34587.0,0.059]
[1625306513673,0.24057544,34588.0,34587.0,0.118]
[1625306513823,0.24057544,34588.0,34587.0,0.059]
[1625306514075,0.24057544,34588.0,34585.0,0.2929]
[1625306514173,0.24057544,34588.0,34585.0,0.3519]
[1625306514272,0.24057544,34588.0,34585.0,0.4109]
[1625306514476,0.24057544,34587.0,34585.0,0.4109]
[1625306514573,0.24057544,34587.0,34585.0,0.2929]
[1625306514674,0.24057544,34587.0,34584.0,0.24057544]
[1625306515176,0.55079544,34587.0,34583.0,1.17866727]
[1625306515278,0.60979544,34587.0,34581.0,1.41864219]
[1625306515977,0.60979544,34587.0,34581.0,0.24057544]
[1625306516077,0.60979544,34587.0,34581.0,0.29957544]
[1625306516177,0.60979544,34587.0,34581.0,0.24057544]
[1625306516427,0.48115088,34582.0,34581.0,0.24057544]
[1625306517931,0.48115088,34582.0,34581.0,0.29957544]
[1625306519786,0.48115088,34582.0,34575.0,1.17445884]
[1625306519885,0.48115088,34582.0,34581.0,0.059]
[1625306520839,0.48115088,34582.0,34574.0,1.17305129]
[1625306520988,0.48115088,34582.0,34574.0,1.29105129]
[1625306521589,0.48115088,34582.0,34574.0,0.118]
[1625306522292,0.54015088,34582.0,34572.0,1.17379286]
[1625306522492,0.48115088,34573.0,34572.0,1.17379286]
[1625306522591,0.68782088,34573.0,34572.0,1.17379286]
[1625306522794,0.68782088,34573.0,34559.0,0.24057544]
[1625306522795,0.68782088,34573.0,34569.0,1.17513389]
[1625306523344,0.68782088,34573.0,34567.0,1.5835856]
[1625306523345,0.68782088,34573.0,34567.0,0.24057544]
[1625306523542,0.68782088,34573.0,34567.0,0.059]
[1625306523793,0.68782088,34573.0,34564.0,0.24057544]
[1625306523894,0.74682088,34573.0,34564.0,1.24867951]
[1625306523993,0.74682088,34573.0,34564.0,1.30767951]
[1625306524097,0.74682088,34573.0,34564.0,1.24867951]
[1625306524198,0.74682088,34573.0,34564.0,0.24057544]
[1625306524347,0.68782088,34573.0,34564.0,0.24057544]
[1625306524547,0.48115088,34565.0,34564.0,0.24057544]
[1625306524647,0.71417088,34565.0,34564.0,0.24057544]
[1625306524797,0.71417088,34565.0,34564.0,0.29957544]
[1625306524897,0.71417088,34565.0,34564.0,0.35857544]
[1625306525199,0.71417088,34565.0,34564.0,0.36391569]
[1625306525401,0.71417088,34565.0,34564.0,0.35857544]
[1625306526505,0.71417088,34565.0,34564.0,0.118]
[1625306527305,0.71417088,34565.0,34564.0,0.059]
[1625306527455,0.71417088,34565.0,34564.0,0.118]
[1625306528407,0.71417088,34565.0,34559.0,1.24666859]
[1625306528518,0.24057544,34560.0,34559.0,1.24666859]
[1625306528661,0.24057544,34560.0,34559.0,1.00609315]
[1625306528756,0.24057544,34560.0,34558.0,1.00524952]
[1625306528959,0.24057544,34560.0,34559.0,0.00534061]
[1625306529608,0.24057544,34560.0,34559.0,0.06434061]
[1625306529709,0.24057544,34560.0,34559.0,0.00534061]
[1625306529859,0.24057544,34560.0,34557.0,0.00534113]
[1625306530410,0.24057544,34560.0,34557.0,0.06434113]
[1625306530509,0.24057544,34558.0,34557.0,0.06434113]
[1625306530609,0.53701544,34558.0,34557.0,0.06434113]
[1625306530812,0.53701544,34558.0,34556.0,0.2929]
[1625306531063,0.53701544,34558.0,34550.0,0.24057544]
[1625306531412,0.53701544,34558.0,34552.0,0.00534131]
[1625306531661,0.53701544,34558.0,34551.0,0.0053414]
[1625306531762,0.53701544,34558.0,34552.0,0.059]
[1625306532216,0.53701544,34558.0,34553.0,0.00534162]
[1625306532464,0.53701544,34558.0,34553.0,0.12334162]
[1625306532564,0.24057544,34554.0,34553.0,0.12334162]
[1625306532665,0.24057544,34554.0,34553.0,0.118]
[1625306532767,0.24057544,34554.0,34553.0,0.059]
[1625306532868,0.24057544,34554.0,34550.0,0.24057544]
[1625306532966,0.24057544,34554.0,34550.0,0.29957544]
[1625306533165,0.24057544,34554.0,34550.0,0.35857544]
[1625306533316,0.24057544,34554.0,34551.0,0.06434166]
[1625306533417,0.24057544,34554.0,34551.0,0.12334166]
[1625306533519,0.24057544,34554.0,34551.0,0.06434166]
[1625306533717,0.24057544,34554.0,34551.0,0.059]
[1625306533866,0.24057544,34554.0,34549.0,0.2929]
[1625306534168,0.24057544,34554.0,34549.0,0.3519]
[1625306534367,0.24057544,34554.0,34549.0,0.4109]
[1625306534518,0.48115088,34550.0,34549.0,0.4109]
[1625306534817,0.48115088,34550.0,34549.0,0.41624404]
[1625306534968,0.48115088,34550.0,34549.0,0.29824404]
[1625306535068,0.75918088,34550.0,34549.0,0.2929]
[1625306535718,0.75918088,34550.0,34544.0,0.24057544]
[1625306535819,0.75918088,34550.0,34544.0,0.29957544]
[1625306535920,0.75918088,34550.0,34544.0,0.35857544]
[1625306536024,0.75918088,34550.0,34544.0,0.29957544]
[1625306536170,0.75918088,34550.0,34545.0,0.00534417]
[1625306536270,0.75918088,34550.0,34545.0,0.06434417]
[1625306536570,0.24057544,34546.0,34545.0,0.06434417]
[1625306536822,0.24057544,34546.0,34545.0,0.12334417]
[1625306541485,0.24057544,34546.0,34545.0,0.06434417]
[1625306541634,0.55340544,34546.0,34545.0,0.00534417]
[1625306541734,0.55340544,34546.0,34545.0,0.12334417]
[1625306541834,0.55340544,34546.0,34545.0,0.06434417]
[1625306541935,0.55340544,34546.0,34545.0,0.00534417]
[1625306542487,0.55340544,34546.0,34545.0,0.06434417]
[1625306543189,0.55340544,34546.0,34545.0,0.059]
[1625306543389,0.55340544,34546.0,34544.0,0.24057544]
[1625306543491,0.55340544,34546.0,34545.0,0.005364]
[1625306543692,0.55340544,34546.0,34545.0,0.059]
[1625306543792,0.55340544,34546.0,34545.0,0.00536404]
[1625306546043,0.55340544,34546.0,34545.0,0.06436404]
[1625306546144,0.24057544,34546.0,34545.0,0.06436404]
[1625306546496,0.24057544,34546.0,34545.0,0.33808404]
[1625306546746,0.24057544,34546.0,34545.0,0.39708404]
[1625306547745,0.24057544,34546.0,34545.0,0.39172]
[1625306547846,0.48115088,34550.0,34545.0,0.39708285]
[1625306547946,0.48115088,34550.0,34549.0,4.2066]
[1625306548099,0.48115088,34550.0,34549.0,4.3246]
[1625306548397,0.48115088,34550.0,34549.0,4.3299627]
[1625306548695,0.48115088,34550.0,34549.0,4.57053814]
[1625306548896,0.24057544,34550.0,34549.0,4.57053814]
[1625306549297,0.24057544,34550.0,34549.0,0.36393814]
[1625306549398,0.24057544,34550.0,34549.0,0.37250492]
[1625306550751,0.24057544,34554.0,34549.0,0.61308036]
[1625306551051,0.24057544,34554.0,34550.0,0.01392969]
[1625306551155,0.24057544,34554.0,34551.0,0.0867]
[1625306551259,0.24057544,34554.0,34551.0,0.1457]
[1625306551561,0.24057544,34554.0,34552.0,0.00536273]
[1625306551658,0.24057544,34554.0,34552.0,0.35477273]
[1625306552113,0.24057544,34554.0,34553.0,0.00536265]
[1625306552212,0.48115088,34560.0,34553.0,0.12336265]
[1625306552318,0.48115088,34560.0,34553.0,0.13192895]
[1625306552763,0.24057544,34560.0,34559.0,0.48115088]
[1625306552861,0.24057544,34560.0,34559.0,0.92397088]
[1625306553161,0.24057544,34560.0,34559.0,0.92933277]
[1625306555218,0.24057544,34560.0,34559.0,1.60239772]
[1625306555870,0.24057544,34565.0,34559.0,1.60239772]
[1625306556272,0.24057544,34565.0,34560.0,0.00536244]
[1625306556372,0.24057544,34565.0,34560.0,0.67841445]
[1625306556471,0.24057544,34565.0,34560.0,0.79641445]
[1625306556774,0.24057544,34565.0,34564.0,0.24057544]
[1625306556872,0.24057544,34565.0,34564.0,3.97037544]
[1625306557072,0.24057544,34565.0,34564.0,3.97573788]
[1625306559126,0.24057544,34565.0,34564.0,0.36393788]
[1625306559878,0.24057544,34565.0,34564.0,0.30493788]
[1625306560829,0.24057544,34565.0,34564.0,0.24593788]
[1625306561129,0.24057544,34565.0,34564.0,0.30493788]
[1625306561680,0.24057544,34565.0,34564.0,0.24593788]
[1625306561832,0.51410544,34565.0,34564.0,0.24593788]
[1625306562081,0.57310544,34565.0,34564.0,0.24593788]
[1625306562184,0.51410544,34565.0,34564.0,0.00536244]
[1625306562331,0.63210544,34565.0,34564.0,0.00536244]
[1625306562530,0.63210544,34565.0,34560.0,0.00536406]
[1625306562783,0.24057544,34561.0,34560.0,0.00536406]
[1625306562881,0.35857544,34561.0,34560.0,0.00536406]
[1625306563330,0.29957544,34561.0,34560.0,0.00536406]
[1625306563830,0.35857544,34561.0,34560.0,0.00536406]
[1625306567141,0.35857544,34561.0,34556.0,0.00535585]
[1625306568843,0.24057544,34557.0,34556.0,0.00535585]
[1625306568944,0.44798544,34557.0,34556.0,0.00535585]
[1625306569347,0.56598544,34557.0,34556.0,0.00535585]
[1625306569798,0.56598544,34557.0,34554.0,0.00535602]
[1625306570049,0.56598544,34557.0,34556.0,0.00535604]
[1625306570352,0.56598544,34557.0,34552.0,0.00535604]
[1625306570551,0.56598544,34557.0,34556.0,0.00535604]
[1625306570800,0.56598544,34557.0,34553.0,0.00535604]
[1625306570902,0.80656088,34557.0,34553.0,0.00535604]
[1625306571102,0.80656088,34557.0,34552.0,0.00535604]
[1625306571301,0.80656088,34557.0,34552.0,0.34472429]
[1625306571651,0.80656088,34557.0,34553.0,0.00535607]
[1625306572855,0.24057544,34556.0,34553.0,0.00535607]
[1625306572956,0.29957544,34556.0,34553.0,0.00535607]
[1625306573058,0.35857544,34556.0,34551.0,0.00535621]
[1625306573309,0.35857544,34556.0,34551.0,0.34498529]
[1625306573558,0.35857544,34556.0,34552.0,0.00535625]
[1625306574867,0.24057544,34553.0,34552.0,0.00535625]
[1625306575217,0.29957544,34553.0,34552.0,0.00535625]
[1625306575317,0.24057544,34553.0,34552.0,0.00535625]
[1625306575518,0.29957544,34553.0,34552.0,0.3452909]
[1625306575617,0.24057544,34553.0,34552.0,0.3452909]
[1625306576020,0.24057544,34553.0,34552.0,0.00535625]
[1625306576771,0.24057544,34553.0,34552.0,0.68521701]
[1625306577372,0.24057544,34553.0,34552.0,1.70580987]
[1625306579475,0.24057544,34553.0,34552.0,2.89759155]
[1625306579826,0.57886455,34557.0,34552.0,2.89759155]
[1625306579927,0.24057544,34557.0,34552.0,2.89759155]
[1625306580025,0.24057544,34557.0,34552.0,3.17486155]
[1625306580176,0.24057544,34557.0,34553.0,0.00535711]
[1625306580678,0.24057544,34557.0,34556.0,0.68100225]
[1625306580877,0.24057544,34557.0,34556.0,1.16215313]
[1625306580978,0.24057544,34557.0,34556.0,1.16751007]
[1625306581783,0.24057544,34557.0,34556.0,2.18899313]
[1625306582334,0.24057544,34557.0,34556.0,1.16751007]
[1625306582634,0.24057544,34557.0,34556.0,1.22651007]
[1625306583086,0.24057544,34557.0,34556.0,2.24878766]
[1625306583438,0.33861492,34559.0,34556.0,2.30778766]
[1625306583787,0.33861492,34559.0,34557.0,0.00535629]
[1625306583888,0.33872924,34560.0,34557.0,0.12335629]
[1625306584287,0.33872924,34560.0,34558.0,0.00535589]
[1625306584391,0.58031108,34564.0,34559.0,4.34638447]
[1625306584488,0.58031108,34564.0,34559.0,4.67997447]
[1625306584844,0.24057544,34564.0,34563.0,2.89706367]
[1625306584944,0.24057544,34564.0,34563.0,3.49621455]
[1625306585094,0.24057544,34564.0,34563.0,4.86492711]
[1625306585545,0.24057544,34564.0,34563.0,3.50157029]
[1625306586144,0.24057544,34564.0,34563.0,3.44257029]
[1625306586244,0.24057544,34564.0,34563.0,3.38357029]
[1625306586596,0.92031279,34564.0,34563.0,2.19066172]
[1625306587098,1.93961467,34564.0,34563.0,1.16816866]
[1625306587603,1.93961467,34564.0,34563.0,0.92759322]
[1625306587702,1.99861467,34564.0,34563.0,0.92759322]
[1625306587801,1.99861467,34564.0,34563.0,0.68701778]
[1625306587953,2.05761467,34564.0,34563.0,0.68701778]
[1625306588248,5.76761467,34564.0,34563.0,0.68701778]
[1625306588350,8.31361817,34564.0,34563.0,0.00535574]
[1625306588853,8.31361817,34564.0,34562.0,0.00535714]
[1625306589001,0.24057544,34563.0,34562.0,0.00535714]
[1625306589101,0.29957544,34563.0,34561.0,0.34104596]
[1625306589252,4.60197488,34563.0,34560.0,0.34121804]
[1625306589351,4.60197488,34563.0,34562.0,0.00535716]
[1625306589652,4.60197488,34563.0,34561.0,0.00535716]
[1625306589853,4.60197488,34563.0,34562.0,0.00535722]
[1625306590151,4.60197488,34563.0,34561.0,0.0053572]
[1625306590954,4.84255032,34563.0,34561.0,0.0053572]
[1625306591105,4.24068983,34562.0,34561.0,0.0053572]
[1625306591205,4.35868983,34562.0,34561.0,0.0053572]
[1625306591456,4.35868983,34562.0,34558.0,0.0053576]
[1625306592357,4.35868983,34562.0,34556.0,0.68250764]
[1625306592510,4.23331895,34559.0,34558.0,0.08531018]
[1625306592607,4.35131895,34559.0,34558.0,0.08531018]
[1625306592859,4.35131895,34559.0,34555.0,0.5971916]
[1625306592960,0.72172632,34556.0,34548.0,1.02381696]
[1625306593109,1.14733632,34556.0,34548.0,1.02381696]
[1625306593308,1.14733632,34556.0,34549.0,0.00535063]
[1625306593560,1.18215362,34550.0,34549.0,0.00535063]
[1625306593759,1.30015362,34550.0,34549.0,0.00535063]
[1625306593859,1.30015362,34550.0,34548.0,0.00535368]
[1625306594060,2.82024213,34550.0,34548.0,0.51730194]
[1625306594159,2.82024213,34550.0,34549.0,0.00535362]
[1625306594562,1.63808851,34550.0,34549.0,0.5172616]
[1625306594912,2.11923939,34550.0,34549.0,0.5172616]
[1625306595764,2.06023939,34550.0,34549.0,0.5172616]
[1625306595964,2.00123939,34550.0,34549.0,0.5172616]
[1625306596064,2.06023939,34550.0,34549.0,0.5172616]
[1625306596466,2.00123939,34550.0,34549.0,0.5172616]
[1625306596716,2.06023939,34550.0,34549.0,0.5172616]
[1625306596816,2.06023939,34550.0,34549.0,0.00535362]
[1625306597266,2.06023939,34550.0,34549.0,0.51690364]
[1625306597416,2.00123939,34550.0,34549.0,0.51690364]
[1625306597617,2.00123939,34550.0,34549.0,0.00535362]
[1625306598017,2.06023939,34550.0,34549.0,0.00535362]
[1625306598117,2.00123939,34550.0,34549.0,0.00535362]
[1625306598217,2.06023939,34550.0,34549.0,0.00535362]
[1625306598417,2.11923939,34550.0,34549.0,0.00535362]
[1625306598971,6.44183939,34550.0,34549.0,0.00535362]
[1625306599219,6.44183939,34550.0,34547.0,0.00535458]
[1625306599318,7.62066841,34550.0,34547.0,0.00535458]
[1625306599418,7.56166841,34550.0,34547.0,0.00535458]
[1625306599569,7.62066841,34550.0,34547.0,0.00535458]
[1625306599670,1.77496262,34548.0,34547.0,0.00535458]
[1625306599769,1.89296262,34548.0,34547.0,0.00535458]
[1625306600022,1.89296262,34548.0,34546.0,0.00535484]
[1625306600573,1.89296262,34548.0,34545.0,0.005355]
[1625306600672,1.51448226,34547.0,34545.0,0.005355]
[1625306600772,1.57348226,34547.0,34545.0,0.005355]
[1625306600973,0.48115088,34546.0,34545.0,0.005355]
[1625306601073,0.98590969,34546.0,34545.0,0.005355]
[1625306601372,0.98590969,34546.0,34544.0,0.00535481]
[1625306602025,0.50504123,34545.0,34544.0,0.00535481]
[1625306602975,0.98611106,34546.0,34544.0,0.00535481]
[1625306603074,0.059,34545.0,34544.0,0.00535481]
[1625306603474,0.059,34545.0,34543.0,0.00535638]
[1625306603625,0.56386609,34545.0,34543.0,0.00535638]
[1625306603924,0.50486609,34545.0,34543.0,0.00535638]
[1625306604025,0.50463225,34544.0,34542.0,0.00535618]
[1625306604124,0.50463225,34544.0,34540.0,0.51087762]
[1625306604578,0.50463225,34544.0,34541.0,0.00535624]
[1625306604727,1.00909634,34545.0,34542.0,0.5108568]
[1625306604728,0.50487229,34545.0,34542.0,0.5108568]
[1625306604830,0.059,34544.0,34542.0,0.5108568]
[1625306604984,0.24057544,34543.0,34542.0,0.5108568]
[1625306605228,0.29957544,34543.0,34542.0,0.5108568]
[1625306605328,4.29897544,34543.0,34542.0,0.51621368]
[1625306605532,4.29897544,34543.0,34542.0,0.00535688]
[1625306605630,4.29897544,34543.0,34539.0,0.51075092]
[1625306605881,4.29897544,34543.0,34540.0,0.00535711]
[1625306605983,4.86230828,34543.0,34540.0,0.00535711]
[1625306606231,4.80330828,34543.0,34540.0,0.00535711]
[1625306606333,4.86230828,34543.0,34540.0,0.00535711]
[1625306606482,4.86230828,34543.0,34539.0,0.00535695]
[1625306606984,0.48115088,34540.0,34539.0,0.00535695]
[1625306607085,0.68111088,34540.0,34539.0,0.00535695]
[1625306607285,0.68111088,34540.0,34538.0,0.51582259]
[1625306607486,0.68111088,34540.0,34539.0,0.00535701]
[1625306607794,0.68111088,34540.0,34537.0,0.51046803]
[1625306608038,0.68111088,34540.0,34538.0,0.00535725]
[1625306608350,0.74011088,34540.0,34536.0,0.51047584]
[1625306608439,0.79911088,34540.0,34536.0,0.51047584]
[1625306608538,0.79911088,34540.0,34534.0,0.51022049]
[1625306608839,0.50313283,34539.0,34532.0,0.75083707]
[1625306608938,0.62113283,34539.0,34532.0,0.75083707]
[1625306609038,0.48115088,34533.0,34532.0,0.75083707]
[1625306609138,0.70083088,34533.0,34532.0,0.75083707]
[1625306609241,0.70083088,34533.0,34532.0,0.51026163]
[1625306609891,0.70083088,34533.0,34532.0,0.51559161]
[1625306610092,0.70083088,34533.0,34532.0,0.00532998]
[1625306610441,0.70083088,34533.0,34531.0,0.51027171]
[1625306611093,0.70083088,34533.0,34530.0,0.50998126]
[1625306611595,0.75983088,34533.0,34530.0,0.50998126]
[1625306611999,0.81883088,34533.0,34530.0,0.50998126]
[1625306612248,0.75983088,34533.0,34530.0,0.50998126]
[1625306612499,0.75983088,34533.0,34529.0,0.50998753]
[1625306612998,0.24057544,34530.0,34529.0,0.50998753]
[1625306613200,0.24057544,34530.0,34529.0,0.56898753]
[1625306613303,0.24057544,34530.0,34529.0,0.62798753]
[1625306613402,0.24057544,34530.0,34529.0,1.6529205]
[1625306613951,0.24057544,34530.0,34529.0,2.84237073]
[1625306614351,0.48115088,34533.0,34529.0,3.04165073]
[1625306614455,0.48115088,34533.0,34529.0,4.40097305]
[1625306614552,0.24057544,34533.0,34529.0,4.40097305]
[1625306614652,0.24057544,34533.0,34530.0,0.00532412]
[1625306614853,0.24057544,34533.0,34530.0,0.06432412]
[1625306615002,0.24057544,34537.0,34532.0,0.72172632]
[1625306615103,0.24057544,34537.0,34532.0,2.25069135]
[1625306615205,0.29957544,34537.0,34532.0,2.25069135]
[1625306615402,0.24057544,34537.0,34532.0,2.30969135]
[1625306615502,0.24057544,34537.0,34533.0,0.00532414]
[1625306615603,0.24057544,34537.0,34533.0,0.06432414]
[1625306615703,0.29957544,34537.0,34535.0,0.50979345]
[1625306615802,0.24057544,34537.0,34535.0,0.56879345]
[1625306616003,0.24057544,34537.0,34536.0,0.00532414]
[1625306616103,0.24057544,34537.0,34536.0,0.33623414]
[1625306616303,0.24057544,34537.0,34536.0,0.39523414]
[1625306616504,0.24057544,34540.0,34536.0,0.39523414]
[1625306616806,0.24057544,34540.0,34537.0,0.00532322]
[1625306616905,0.24057544,34540.0,34539.0,0.50972267]
[1625306617055,0.24057544,34544.0,34539.0,1.10887355]
[1625306617157,0.24057544,34544.0,34539.0,1.04987355]
[1625306617255,0.24057544,34544.0,34539.0,0.99087355]
[1625306617406,0.24057544,34544.0,34540.0,0.00532351]
[1625306618106,0.24057544,34544.0,34539.0,0.48115088]
[1625306618356,0.24057544,34544.0,34540.0,0.00532397]
[1625306618509,0.29957544,34544.0,34540.0,0.00532397]
[1625306618608,0.80298332,34544.0,34540.0,0.00532397]
[1625306619057,0.24057544,34543.0,34540.0,0.00532397]
[1625306619259,0.29957544,34543.0,34540.0,0.00532397]
[1625306619359,0.24057544,34543.0,34540.0,0.00532397]
[1625306619458,0.7440743,34543.0,34540.0,0.00532397]
[1625306619908,0.8030743,34543.0,34540.0,0.00532397]
[1625306620058,0.7440743,34543.0,34539.0,0.48115088]
[1625306620209,0.8030743,34543.0,34539.0,0.48115088]
[1625306620311,0.8030743,34543.0,34541.0,0.00532411]
[1625306620510,0.8030743,34543.0,34540.0,0.00532397]
[1625306620809,0.8030743,34543.0,34542.0,0.00532408]
[1625306621059,0.8030743,34543.0,34541.0,0.00532413]
[1625306621362,0.8030743,34543.0,34540.0,0.00532416]
[1625306621560,0.8030743,34543.0,34542.0,0.00532418]
[1625306621661,0.29957544,34543.0,34542.0,0.00532418]
[1625306621910,0.29957544,34543.0,34540.0,0.00532415]
[1625306622061,0.80312528,34543.0,34540.0,0.00532415]
[1625306622562,0.5035648,34542.0,34540.0,0.00532415]
[1625306622663,0.5625648,34542.0,34540.0,0.00532415]
[1625306622865,0.5035648,34542.0,34540.0,0.00532415]
[1625306623167,0.74426143,34543.0,34540.0,0.00532415]